[Event "Titled Tuesday Blitz June 6 Late 2023"]
[White "Martinez Ramirez, Lennis"]
[Black "Moral Garcia, Serafin"]
[WhiteFideId "3509079"]
[BlackFideId "2201925"]
[WhiteElo "2410"]
[BlackElo "2274"]
[Result "1-0"]
[Round "8"]
[TimeControl "180+2"]
[Date "2023.06.07"]
[WhiteClock "0:00:39"]
[BlackClock "0:00:19"]
[Board "35"]

1. Nf3 {[%clk 0:02:39]}  Nf6 {[%clk 0:02:57]} 2. c4 {[%clk 0:02:38]}  c5 {[%clk 0:02:58]} 3. g3 {[%clk 0:02:37]}  g6 {[%clk 0:02:57]} 4. Bg2 {[%clk 0:02:38]}  Bg7 {[%clk 0:02:58]} 5. Nc3 {[%clk 0:02:38]}  Nc6 {[%clk 0:02:56]} 6. a3 {[%clk 0:02:37]}  O-O {[%clk 0:02:55]} 7. Rb1 {[%clk 0:02:36]}  a5 {[%clk 0:02:53]} 8. e4 {[%clk 0:02:34]}  d6 {[%clk 0:02:47]} 9. h3 {[%clk 0:02:33]}  Ne8 {[%clk 0:02:39]} 10. O-O {[%clk 0:02:32]}  Nc7 {[%clk 0:02:39]} 11. Nd5 {[%clk 0:02:26]}  e6 {[%clk 0:02:28]} 12. Nb6 {[%clk 0:02:18]}  Ra6 {[%clk 0:02:27]} 13. Nxc8 {[%clk 0:02:18]}  Qxc8 {[%clk 0:02:26]} 14. d3 {[%clk 0:02:18]}  b5 {[%clk 0:02:19]} 15. b3 {[%clk 0:02:10]}  Rb6 {[%clk 0:02:17]} 16. Be3 {[%clk 0:02:08]}  b4 {[%clk 0:02:10]} 17. a4 {[%clk 0:02:08]}  e5 {[%clk 0:02:07]} 18. h4 {[%clk 0:02:07]}  Ne6 {[%clk 0:01:50]} 19. Bh3 {[%clk 0:02:07]}  Qc7 {[%clk 0:01:43]} 20. h5 {[%clk 0:02:07]}  Ncd4 {[%clk 0:01:39]} 21. Nxd4 {[%clk 0:02:05]}  Nxd4 {[%clk 0:01:34]} 22. hxg6 {[%clk 0:02:05]}  hxg6 {[%clk 0:01:32]} 23. Kg2 {[%clk 0:02:05]}  Rbb8 {[%clk 0:01:26]} 24. Rh1 {[%clk 0:02:05]}  Qe7 {[%clk 0:01:21]} 25. Qg4 {[%clk 0:02:04]}  Ne6 {[%clk 0:01:11]} 26. Rh2 {[%clk 0:02:03]}  Rfe8 {[%clk 0:01:03]} 27. Rbh1 {[%clk 0:02:02]}  Kf8 {[%clk 0:01:03]} 28. Qd1 {[%clk 0:02:00]}  Qf6 {[%clk 0:01:00]} 29. Bxe6 {[%clk 0:01:55]}  Rxe6 {[%clk 0:00:52]} 30. Qg4 {[%clk 0:01:54]}  Ree8 {[%clk 0:00:46]} 31. Rh7 {[%clk 0:01:24]}  Qe6 {[%clk 0:00:44]} 32. Qh4 {[%clk 0:01:24]}  Bf6 {[%clk 0:00:39]} 33. Qh6+ {[%clk 0:00:56]}  Ke7 {[%clk 0:00:38]} 34. Qxg6 {[%clk 0:00:56]}  Rg8 {[%clk 0:00:28]} 35. Qh5 {[%clk 0:00:55]}  Rh8 {[%clk 0:00:28]} 36. Qf3 {[%clk 0:00:55]}  Rxh7 {[%clk 0:00:27]} 37. Rxh7 {[%clk 0:00:56]}  Rh8 {[%clk 0:00:26]} 38. Rxh8 {[%clk 0:00:48]}  Bxh8 {[%clk 0:00:26]} 39. Bg5+ {[%clk 0:00:48]}  Ke8 {[%clk 0:00:22]} 40. Qh5 {[%clk 0:00:48]}  Bg7 {[%clk 0:00:22]} 41. Qh7 {[%clk 0:00:47]}  Kf8 {[%clk 0:00:22]} 42. Bd8 {[%clk 0:00:44]}  Qg4 {[%clk 0:00:20]} 43. f3 {[%clk 0:00:40]}  Qg5 {[%clk 0:00:19]} 44. Bxg5 {[%clk 0:00:39]} 1-0


[Site "https://www.chess.com"]

[Event "Titled Tuesday Blitz June 6 Late 2023"]
[White "Rustemov, Alexander"]
[Black "ArtemDyachuk"]
[WhiteFideId "4119002"]
[WhiteElo "2830"]
[BlackElo "2563"]
[Result "1-0"]
[Round "8"]
[TimeControl "180+2"]
[Date "2023.06.07"]
[WhiteClock "0:01:01"]
[BlackClock "0:00:01"]
[Board "41"]

1. d4 {[%clk 0:02:55]}  Nf6 {[%clk 0:02:59]} 2. c4 {[%clk 0:02:55]}  e6 {[%clk 0:02:57]} 3. Nf3 {[%clk 0:02:56]}  c5 {[%clk 0:02:57]} 4. d5 {[%clk 0:02:55]}  d6 {[%clk 0:02:56]} 5. Nc3 {[%clk 0:02:55]}  exd5 {[%clk 0:02:56]} 6. cxd5 {[%clk 0:02:56]}  g6 {[%clk 0:02:55]} 7. h3 {[%clk 0:02:57]}  Bg7 {[%clk 0:02:54]} 8. e4 {[%clk 0:02:57]}  O-O {[%clk 0:02:55]} 9. Bd3 {[%clk 0:02:58]}  b5 {[%clk 0:02:41]} 10. Bxb5 {[%clk 0:02:57]}  Nxe4 {[%clk 0:02:40]} 11. Nxe4 {[%clk 0:02:58]}  Qa5+ {[%clk 0:02:39]} 12. Nfd2 {[%clk 0:02:59]}  Qxb5 {[%clk 0:02:39]} 13. Nxd6 {[%clk 0:02:59]}  Qa6 {[%clk 0:02:39]} 14. N2c4 {[%clk 0:03:00]}  Nd7 {[%clk 0:02:39]} 15. O-O {[%clk 0:03:01]}  Nb6 {[%clk 0:02:39]} 16. Nxb6 {[%clk 0:02:57]}  axb6 {[%clk 0:02:38]} 17. Re1 {[%clk 0:02:33]}  Bd7 {[%clk 0:02:32]} 18. Qf3 {[%clk 0:02:05]}  b5 {[%clk 0:02:25]} 19. Ne4 {[%clk 0:02:04]}  Rfe8 {[%clk 0:02:14]} 20. Bg5 {[%clk 0:02:00]}  Rac8 {[%clk 0:01:53]} 21. Nf6+ {[%clk 0:01:58]}  Bxf6 {[%clk 0:01:47]} 22. Qxf6 {[%clk 0:01:58]}  Qxf6 {[%clk 0:01:33]} 23. Bxf6 {[%clk 0:01:59]}  h6 {[%clk 0:01:03]} 24. g4 {[%clk 0:01:54]}  g5 {[%clk 0:01:02]} 25. Kg2 {[%clk 0:01:46]}  Kh7 {[%clk 0:01:02]} 26. Kg3 {[%clk 0:01:44]}  Kg6 {[%clk 0:01:02]} 27. Be7 {[%clk 0:01:43]}  c4 {[%clk 0:00:51]} 28. Re3 {[%clk 0:01:35]}  h5 {[%clk 0:00:48]} 29. f4 {[%clk 0:01:29]}  gxf4+ {[%clk 0:00:40]} 30. Kxf4 {[%clk 0:01:28]}  hxg4 {[%clk 0:00:40]} 31. hxg4 {[%clk 0:01:29]}  c3 {[%clk 0:00:40]} 32. bxc3 {[%clk 0:01:20]}  Rc4+ {[%clk 0:00:38]} 33. Kf3 {[%clk 0:01:18]}  Bxg4+ {[%clk 0:00:37]} 34. Kf2 {[%clk 0:01:16]}  f6 {[%clk 0:00:10]} 35. d6 {[%clk 0:01:11]}  Rec8 {[%clk 0:00:08]} 36. Rg1 {[%clk 0:01:08]}  Kf7 {[%clk 0:00:06]} 37. Rxg4 {[%clk 0:01:03]}  Rxg4 {[%clk 0:00:04]} 38. d7 {[%clk 0:01:04]}  Rcg8 {[%clk 0:00:01]} 39. d8=Q {[%clk 0:01:03]}  Rg2+ {[%clk 0:00:01]} 40. Ke1 {[%clk 0:01:01]} 1-0


[Site "https://www.chess.com"]

[Event "Titled Tuesday Blitz June 6 Late 2023"]
[White "Bryakin, Mikhail"]
[Black "Golubev, Mikhail"]
[WhiteFideId "4165314"]
[BlackFideId "14100983"]
[WhiteElo "2464"]
[BlackElo "2374"]
[Result "1-0"]
[Round "8"]
[TimeControl "180+2"]
[Date "2023.06.07"]
[WhiteClock "0:00:20"]
[BlackClock "0:00:03"]
[Board "42"]

1. e4 {[%clk 0:02:47]}  c5 {[%clk 0:02:59]} 2. a3 {[%clk 0:02:45]}  g6 {[%clk 0:02:58]} 3. b4 {[%clk 0:02:44]}  Bg7 {[%clk 0:02:58]} 4. Ra2 {[%clk 0:02:44]}  d6 {[%clk 0:02:42]} 5. Bb2 {[%clk 0:02:41]}  Nf6 {[%clk 0:02:36]} 6. bxc5 {[%clk 0:02:40]}  dxc5 {[%clk 0:02:36]} 7. e5 {[%clk 0:02:39]}  Nd5 {[%clk 0:02:25]} 8. e6 {[%clk 0:02:37]}  f6 {[%clk 0:02:10]} 9. Bb5+ {[%clk 0:02:36]}  Nc6 {[%clk 0:02:08]} 10. Qe2 {[%clk 0:02:35]}  Nc7 {[%clk 0:02:02]} 11. Nf3 {[%clk 0:02:22]}  Bxe6 {[%clk 0:01:55]} 12. Ra1 {[%clk 0:02:23]}  O-O {[%clk 0:01:53]} 13. Bxc6 {[%clk 0:02:16]}  bxc6 {[%clk 0:01:51]} 14. O-O {[%clk 0:02:17]}  Rb8 {[%clk 0:01:42]} 15. Bc1 {[%clk 0:02:17]}  Bf7 {[%clk 0:01:35]} 16. Nc3 {[%clk 0:02:18]}  Nd5 {[%clk 0:01:34]} 17. Re1 {[%clk 0:02:12]}  e5 {[%clk 0:01:20]} 18. a4 {[%clk 0:02:02]}  Re8 {[%clk 0:01:08]} 19. Ba3 {[%clk 0:02:01]}  e4 {[%clk 0:01:01]} 20. Nh4 {[%clk 0:01:47]}  Nxc3 {[%clk 0:00:54]} 21. dxc3 {[%clk 0:01:47]}  f5 {[%clk 0:00:55]} 22. g3 {[%clk 0:01:47]}  Bxc3 {[%clk 0:00:53]} 23. Red1 {[%clk 0:01:47]}  Qf6 {[%clk 0:00:36]} 24. Rab1 {[%clk 0:01:46]}  c4 {[%clk 0:00:32]} 25. Bc5 {[%clk 0:01:41]}  a6 {[%clk 0:00:25]} 26. Ng2 {[%clk 0:01:41]}  Rxb1 {[%clk 0:00:19]} 27. Rxb1 {[%clk 0:01:41]}  Bd4 {[%clk 0:00:19]} 28. Bxd4 {[%clk 0:01:36]}  Qxd4 {[%clk 0:00:19]} 29. Rd1 {[%clk 0:01:37]}  Qc3 {[%clk 0:00:18]} 30. Nf4 {[%clk 0:01:36]}  Qf3 {[%clk 0:00:14]} 31. h4 {[%clk 0:01:22]}  Qxe2 {[%clk 0:00:13]} 32. Nxe2 {[%clk 0:01:23]}  e3 {[%clk 0:00:12]} 33. Rd7 {[%clk 0:01:17]}  Bd5 {[%clk 0:00:10]} 34. fxe3 {[%clk 0:01:11]}  Rxe3 {[%clk 0:00:10]} 35. Kf2 {[%clk 0:01:11]}  Rf3+ {[%clk 0:00:10]} 36. Ke1 {[%clk 0:01:12]}  Ra3 {[%clk 0:00:10]} 37. h5 {[%clk 0:01:09]}  gxh5 {[%clk 0:00:09]} 38. c3 {[%clk 0:01:09]}  Rxa4 {[%clk 0:00:07]} 39. Nf4 {[%clk 0:01:10]}  Ra1+ {[%clk 0:00:06]} 40. Kf2 {[%clk 0:01:10]}  Ra2+ {[%clk 0:00:07]} 41. Ke3 {[%clk 0:01:10]}  Rc2 {[%clk 0:00:05]} 42. Kd4 {[%clk 0:01:10]}  Re2 {[%clk 0:00:05]} 43. Nxh5 {[%clk 0:01:08]}  Re4+ {[%clk 0:00:04]} 44. Kc5 {[%clk 0:01:09]}  Kf8 {[%clk 0:00:04]} 45. Rxh7 {[%clk 0:01:04]}  Re3 {[%clk 0:00:04]} 46. Kd4 {[%clk 0:01:03]}  Re4+ {[%clk 0:00:03]} 47. Kc5 {[%clk 0:01:03]}  Re3 {[%clk 0:00:04]} 48. Kd6 {[%clk 0:01:02]}  Rxc3 {[%clk 0:00:03]} 49. Ke5 {[%clk 0:00:58]}  Re3+ {[%clk 0:00:03]} 50. Kf6 {[%clk 0:00:58]}  Ke8 {[%clk 0:00:03]} 51. Ng7+ {[%clk 0:00:58]}  Kd8 {[%clk 0:00:03]} 52. Nxf5 {[%clk 0:00:59]}  Rf3 {[%clk 0:00:03]} 53. Ke5 {[%clk 0:00:57]}  Kc8 {[%clk 0:00:03]} 54. Nd4 {[%clk 0:00:57]}  Re3+ {[%clk 0:00:01]} 55. Kd6 {[%clk 0:00:58]}  Re1 {[%clk 0:00:01]} 56. Rh2 {[%clk 0:00:50]}  Kb8 {[%clk 0:00:01]} 57. Rb2+ {[%clk 0:00:50]}  Ka7 {[%clk 0:00:01]} 58. Nf5 {[%clk 0:00:42]}  Re4 {[%clk 0:00:01]} 59. g4 {[%clk 0:00:37]}  Re6+ {[%clk 0:00:01]} 60. Kc5 {[%clk 0:00:37]}  Rg6 {[%clk 0:00:02]} 61. Ne7 {[%clk 0:00:36]}  Rxg4 {[%clk 0:00:02]} 62. Nc8+ {[%clk 0:00:37]}  Ka8 {[%clk 0:00:02]} 63. Nb6+ {[%clk 0:00:36]}  Kb7 {[%clk 0:00:01]} 64. Nxd5+ {[%clk 0:00:36]}  Kc8 {[%clk 0:00:01]} 65. Ne3 {[%clk 0:00:29]}  Rg5+ {[%clk 0:00:01]} 66. Kd6 {[%clk 0:00:29]}  Rg6+ {[%clk 0:00:01]} 67. Kc5 {[%clk 0:00:30]}  Rg5+ {[%clk 0:00:02]} 68. Kxc6 {[%clk 0:00:28]}  Rg6+ {[%clk 0:00:02]} 69. Kc5 {[%clk 0:00:28]}  Rg5+ {[%clk 0:00:03]} 70. Nd5 {[%clk 0:00:29]}  Rh5 {[%clk 0:00:03]} 71. Rc2 {[%clk 0:00:28]}  Rh6 {[%clk 0:00:02]} 72. Rxc4 {[%clk 0:00:28]}  Kd7 {[%clk 0:00:03]} 73. Rg4 {[%clk 0:00:27]}  Rc6+ {[%clk 0:00:03]} 74. Kd4 {[%clk 0:00:28]}  Rc1 {[%clk 0:00:02]} 75. Rg7+ {[%clk 0:00:27]}  Kd8 {[%clk 0:00:03]} 76. Ke5 {[%clk 0:00:27]}  Kc8 {[%clk 0:00:03]} 77. Kd6 {[%clk 0:00:27]}  a5 {[%clk 0:00:03]} 78. Ra7 {[%clk 0:00:25]}  Kb8 {[%clk 0:00:03]} 79. Rxa5 {[%clk 0:00:23]}  Rc2 {[%clk 0:00:03]} 80. Rb5+ {[%clk 0:00:23]}  Ka8 {[%clk 0:00:03]} 81. Nc7+ {[%clk 0:00:21]}  Ka7 {[%clk 0:00:03]} 82. Kd7 {[%clk 0:00:21]}  Rd2+ {[%clk 0:00:03]} 83. Kc8 {[%clk 0:00:22]}  Rb2 {[%clk 0:00:03]} 84. Rh5 {[%clk 0:00:18]}  Kb6 {[%clk 0:00:03]} 85. Rh6+ {[%clk 0:00:18]}  Kc5 {[%clk 0:00:03]} 86. Kd7 {[%clk 0:00:18]}  Kd4 {[%clk 0:00:03]} 87. Ne6+ {[%clk 0:00:18]}  Kd3 {[%clk 0:00:03]} 88. Kd6 {[%clk 0:00:18]}  Kc2 {[%clk 0:00:03]} 89. Kd5 {[%clk 0:00:19]}  Rb8 {[%clk 0:00:03]} 90. Nd4+ {[%clk 0:00:19]}  Kb1 {[%clk 0:00:03]} 91. Rh2 {[%clk 0:00:19]}  Rd8+ {[%clk 0:00:03]} 92. Kc4 {[%clk 0:00:19]}  Rc8+ {[%clk 0:00:03]} 93. Kd3 {[%clk 0:00:20]}  Rc7 {[%clk 0:00:04]} 94. Nb5 {[%clk 0:00:20]}  Rc8 {[%clk 0:00:04]} 95. Nc3+ {[%clk 0:00:20]}  Ka1 {[%clk 0:00:03]} 96. Ra2# {[%clk 0:00:20]} 1-0


[Site "https://www.chess.com"]

[Event "Titled Tuesday Blitz June 6 Late 2023"]
[White "Ozates, Tuna"]
[Black "Hambleton, Aman"]
[WhiteFideId "6354521"]
[BlackFideId "2606577"]
[WhiteElo "2151"]
[BlackElo "2511"]
[Result "0-1"]
[Round "8"]
[TimeControl "180+2"]
[Date "2023.06.07"]
[WhiteClock "0:00:01"]
[BlackClock "0:00:44"]
[Board "43"]

1. e4 {[%clk 0:03:00]}  d5 {[%clk 0:02:58]} 2. exd5 {[%clk 0:02:59]}  Qxd5 {[%clk 0:02:59]} 3. Nc3 {[%clk 0:02:59]}  Qe5+ {[%clk 0:03:00]} 4. Nge2 {[%clk 0:02:58]}  c6 {[%clk 0:03:00]} 5. d4 {[%clk 0:02:58]}  Qa5 {[%clk 0:02:57]} 6. g3 {[%clk 0:02:54]}  Bf5 {[%clk 0:02:55]} 7. Bg2 {[%clk 0:02:55]}  e6 {[%clk 0:02:56]} 8. O-O {[%clk 0:02:55]}  Nf6 {[%clk 0:02:56]} 9. a3 {[%clk 0:02:55]}  Nbd7 {[%clk 0:02:56]} 10. h3 {[%clk 0:02:43]}  Bd6 {[%clk 0:02:45]} 11. Bf4 {[%clk 0:02:38]}  Bxf4 {[%clk 0:02:44]} 12. Nxf4 {[%clk 0:02:39]}  O-O {[%clk 0:02:41]} 13. b4 {[%clk 0:02:39]}  Qc7 {[%clk 0:02:41]} 14. Qe2 {[%clk 0:02:27]}  h6 {[%clk 0:02:37]} 15. Na4 {[%clk 0:02:24]}  a5 {[%clk 0:02:34]} 16. c4 {[%clk 0:02:20]}  axb4 {[%clk 0:02:22]} 17. axb4 {[%clk 0:02:20]}  Rfd8 {[%clk 0:02:23]} 18. Nc3 {[%clk 0:01:58]}  Qb6 {[%clk 0:02:18]} 19. b5 {[%clk 0:01:48]}  Rxa1 {[%clk 0:02:12]} 20. Rxa1 {[%clk 0:01:48]}  Qxd4 {[%clk 0:02:12]} 21. Rc1 {[%clk 0:01:42]}  cxb5 {[%clk 0:01:54]} 22. Nxb5 {[%clk 0:01:43]}  Qb6 {[%clk 0:01:53]} 23. Rd1 {[%clk 0:01:33]}  Nc5 {[%clk 0:01:54]} 24. g4 {[%clk 0:01:25]}  Be4 {[%clk 0:01:47]} 25. Bxe4 {[%clk 0:01:14]}  Nfxe4 {[%clk 0:01:48]} 26. Kg2 {[%clk 0:01:08]}  Rxd1 {[%clk 0:01:23]} 27. Qxd1 {[%clk 0:01:06]}  Nxf2 {[%clk 0:01:24]} 28. Qd4 {[%clk 0:00:38]}  Nfe4 {[%clk 0:01:24]} 29. Nh5 {[%clk 0:00:37]}  f6 {[%clk 0:01:08]} 30. h4 {[%clk 0:00:19]}  Qa5 {[%clk 0:01:01]} 31. Kf3 {[%clk 0:00:13]}  Qe1 {[%clk 0:00:50]} 32. Nf4 {[%clk 0:00:01]}  Qg3+ {[%clk 0:00:43]} 33. Ke2 {[%clk 0:00:01]}  Qxf4 {[%clk 0:00:44]} 0-1


[Site "https://www.chess.com"]

[Event "Titled Tuesday Blitz June 6 Late 2023"]
[White "Sargsyan, Anna M."]
[Black "Pakleza, Zbigniew"]
[WhiteFideId "13308130"]
[BlackFideId "1119290"]
[WhiteElo "2284"]
[BlackElo "2410"]
[Result "0-1"]
[Round "8"]
[TimeControl "180+2"]
[Date "2023.06.07"]
[WhiteClock "0:00:01"]
[BlackClock "0:00:02"]
[Board "44"]

1. e4 {[%clk 0:02:57]}  d6 {[%clk 0:02:59]} 2. d4 {[%clk 0:02:57]}  Nf6 {[%clk 0:03:00]} 3. Nc3 {[%clk 0:02:56]}  c6 {[%clk 0:03:00]} 4. f4 {[%clk 0:02:54]}  Qb6 {[%clk 0:03:00]} 5. h3 {[%clk 0:02:53]}  e5 {[%clk 0:03:00]} 6. Nf3 {[%clk 0:02:51]}  Nbd7 {[%clk 0:02:55]} 7. fxe5 {[%clk 0:02:31]}  dxe5 {[%clk 0:02:56]} 8. dxe5 {[%clk 0:02:31]}  Nh5 {[%clk 0:02:48]} 9. Bc4 {[%clk 0:02:24]}  Ng3 {[%clk 0:02:15]} 10. Bxf7+ {[%clk 0:01:35]}  Kxf7 {[%clk 0:02:07]} 11. Ng5+ {[%clk 0:01:36]}  Kg8 {[%clk 0:01:58]} 12. Qf3 {[%clk 0:01:35]}  Nxe5 {[%clk 0:01:59]} 13. Qxg3 {[%clk 0:01:34]}  Bd6 {[%clk 0:01:43]} 14. Qe3 {[%clk 0:01:00]}  Qxe3+ {[%clk 0:01:21]} 15. Bxe3 {[%clk 0:01:01]}  Nc4 {[%clk 0:01:19]} 16. Bd4 {[%clk 0:00:23]}  h6 {[%clk 0:01:10]} 17. Nf3 {[%clk 0:00:16]}  Nxb2 {[%clk 0:01:06]} 18. e5 {[%clk 0:00:15]}  Be7 {[%clk 0:01:01]} 19. Ne4 {[%clk 0:00:15]}  Nc4 {[%clk 0:01:00]} 20. O-O {[%clk 0:00:15]}  Kh7 {[%clk 0:00:57]} 21. Rae1 {[%clk 0:00:13]}  b6 {[%clk 0:00:50]} 22. Bc3 {[%clk 0:00:13]}  c5 {[%clk 0:00:45]} 23. Ng3 {[%clk 0:00:12]}  Be6 {[%clk 0:00:42]} 24. Nh5 {[%clk 0:00:11]}  Rhf8 {[%clk 0:00:38]} 25. Nh2 {[%clk 0:00:10]}  Rxf1+ {[%clk 0:00:33]} 26. Rxf1 {[%clk 0:00:10]}  Ne3 {[%clk 0:00:30]} 27. Rf2 {[%clk 0:00:08]}  Rf8 {[%clk 0:00:24]} 28. Re2 {[%clk 0:00:07]}  Nd5 {[%clk 0:00:20]} 29. Bb2 {[%clk 0:00:07]}  Nb4 {[%clk 0:00:13]} 30. a3 {[%clk 0:00:05]}  Nc6 {[%clk 0:00:14]} 31. Nf3 {[%clk 0:00:05]}  Na5 {[%clk 0:00:09]} 32. Bc3 {[%clk 0:00:04]}  Nc4 {[%clk 0:00:09]} 33. a4 {[%clk 0:00:05]}  a5 {[%clk 0:00:09]} 34. Ng3 {[%clk 0:00:05]}  Bd7 {[%clk 0:00:08]} 35. e6 {[%clk 0:00:05]}  Bxa4 {[%clk 0:00:08]} 36. Nh5 {[%clk 0:00:04]}  g6 {[%clk 0:00:09]} 37. Ng3 {[%clk 0:00:04]}  Bc6 {[%clk 0:00:09]} 38. Nh2 {[%clk 0:00:04]}  a4 {[%clk 0:00:08]} 39. Ng4 {[%clk 0:00:04]}  a3 {[%clk 0:00:07]} 40. Re1 {[%clk 0:00:03]}  h5 {[%clk 0:00:06]} 41. Nf2 {[%clk 0:00:01]}  Bf6 {[%clk 0:00:05]} 42. Bxf6 {[%clk 0:00:01]}  Rxf6 {[%clk 0:00:06]} 43. e7 {[%clk 0:00:02]}  a2 {[%clk 0:00:06]} 44. Nge4 {[%clk 0:00:01]}  Rf4 {[%clk 0:00:02]} 0-1


[Site "https://www.chess.com"]

[Event "Titled Tuesday Blitz June 6 Late 2023"]
[White "Matinian, Nikita"]
[Black "Vovk, Orest"]
[WhiteFideId "24129100"]
[BlackFideId "14113490"]
[WhiteElo "2422"]
[BlackElo "2215"]
[Result "1-0"]
[Round "8"]
[TimeControl "180+2"]
[Date "2023.06.07"]
[WhiteClock "0:01:39"]
[BlackClock "0:00:02"]
[Board "48"]

1. e4 {[%clk 0:03:00]}  g5 {[%clk 0:02:54]} 2. d4 {[%clk 0:03:00]}  g4 {[%clk 0:02:54]} 3. Nc3 {[%clk 0:02:59]}  Bg7 {[%clk 0:02:52]} 4. Be2 {[%clk 0:02:58]}  c5 {[%clk 0:02:50]} 5. Be3 {[%clk 0:02:53]}  h5 {[%clk 0:02:41]} 6. h3 {[%clk 0:02:52]}  Nc6 {[%clk 0:01:55]} 7. d5 {[%clk 0:02:45]}  Nd4 {[%clk 0:01:50]} 8. hxg4 {[%clk 0:02:45]}  hxg4 {[%clk 0:01:40]} 9. Rxh8 {[%clk 0:02:44]}  Bxh8 {[%clk 0:01:39]} 10. Bxg4 {[%clk 0:02:45]}  d6 {[%clk 0:01:39]} 11. Bxc8 {[%clk 0:02:43]}  Rxc8 {[%clk 0:01:33]} 12. Nf3 {[%clk 0:02:43]}  Nxf3+ {[%clk 0:01:31]} 13. Qxf3 {[%clk 0:02:38]}  Bxc3+ {[%clk 0:01:32]} 14. bxc3 {[%clk 0:02:37]}  Qa5 {[%clk 0:01:32]} 15. Kd2 {[%clk 0:02:32]}  Nf6 {[%clk 0:01:28]} 16. Rh1 {[%clk 0:02:30]}  Kd7 {[%clk 0:01:23]} 17. Bg5 {[%clk 0:02:22]}  Qxa2 {[%clk 0:00:15]} 18. Bxf6 {[%clk 0:02:19]}  exf6 {[%clk 0:00:16]} 19. Qxf6 {[%clk 0:02:19]}  Re8 {[%clk 0:00:12]} 20. Rh7 {[%clk 0:02:11]}  Re7 {[%clk 0:00:11]} 21. Rxf7 {[%clk 0:02:10]}  Rxf7 {[%clk 0:00:10]} 22. Qxf7+ {[%clk 0:02:11]}  Kc8 {[%clk 0:00:09]} 23. Qe8+ {[%clk 0:02:10]}  Kc7 {[%clk 0:00:09]} 24. Qe7+ {[%clk 0:02:09]}  Kc8 {[%clk 0:00:09]} 25. Qxd6 {[%clk 0:02:08]}  Qc4 {[%clk 0:00:09]} 26. Qe6+ {[%clk 0:02:04]}  Kd8 {[%clk 0:00:05]} 27. g4 {[%clk 0:01:48]}  b5 {[%clk 0:00:05]} 28. Qd6+ {[%clk 0:01:46]}  Kc8 {[%clk 0:00:05]} 29. Qc6+ {[%clk 0:01:44]}  Kd8 {[%clk 0:00:04]} 30. d6 {[%clk 0:01:42]}  Qf7 {[%clk 0:00:02]} 31. Qa8+ {[%clk 0:01:39]} 1-0


[Site "https://www.chess.com"]

[Event "Titled Tuesday Blitz June 6 Late 2023"]
[White "Mieles Palau, Daniel"]
[Black "Veiga, Jose Francisco R P Neves"]
[WhiteFideId "3600467"]
[BlackFideId "1930087"]
[WhiteElo "2344"]
[BlackElo "2319"]
[Result "1-0"]
[Round "8"]
[TimeControl "180+2"]
[Date "2023.06.07"]
[WhiteClock "0:01:52"]
[BlackClock "0:02:25"]
[Board "51"]

1. b3 {[%clk 0:02:58]}  Nf6 {[%clk 0:03:00]} 2. e3 {[%clk 0:02:57]}  g6 {[%clk 0:02:55]} 3. Bb2 {[%clk 0:02:57]}  Bg7 {[%clk 0:02:54]} 4. Nf3 {[%clk 0:02:57]}  O-O {[%clk 0:02:53]} 5. c4 {[%clk 0:02:57]}  c5 {[%clk 0:02:53]} 6. Be2 {[%clk 0:02:57]}  Nc6 {[%clk 0:02:53]} 7. O-O {[%clk 0:02:57]}  b6 {[%clk 0:02:52]} 8. d4 {[%clk 0:02:56]}  cxd4 {[%clk 0:02:53]} 9. Nxd4 {[%clk 0:02:57]}  Bb7 {[%clk 0:02:53]} 10. Bf3 {[%clk 0:02:52]}  Rc8 {[%clk 0:02:50]} 11. Nc3 {[%clk 0:02:51]}  d6 {[%clk 0:02:45]} 12. Rc1 {[%clk 0:02:43]}  Qc7 {[%clk 0:02:41]} 13. Nd5 {[%clk 0:02:39]}  Qd8 {[%clk 0:02:42]} 14. Nxf6+ {[%clk 0:02:36]}  Bxf6 {[%clk 0:02:39]} 15. Nxc6 {[%clk 0:02:35]}  Bxc6 {[%clk 0:02:40]} 16. Bxf6 {[%clk 0:02:35]}  exf6 {[%clk 0:02:40]} 17. Bxc6 {[%clk 0:02:33]}  Rxc6 {[%clk 0:02:41]} 18. Qd4 {[%clk 0:02:19]}  Qe7 {[%clk 0:02:41]} 19. Rcd1 {[%clk 0:02:17]}  Rd8 {[%clk 0:02:41]} 20. Rd2 {[%clk 0:02:10]}  Kg7 {[%clk 0:02:32]} 21. Rfd1 {[%clk 0:02:09]}  h5 {[%clk 0:02:33]} 22. Qf4 {[%clk 0:02:02]}  Qe6 {[%clk 0:02:32]} 23. Rd5 {[%clk 0:01:58]}  Rd7 {[%clk 0:02:26]} 24. h3 {[%clk 0:01:57]}  Rd8 {[%clk 0:02:26]} 25. R1d4 {[%clk 0:01:57]}  Rd7 {[%clk 0:02:26]} 26. Re4 {[%clk 0:01:57]}  g5 {[%clk 0:02:25]} 27. Qf3 {[%clk 0:01:52]} 1-0


[Site "https://www.chess.com"]

[Event "Titled Tuesday Blitz June 6 Late 2023"]
[White "Schnaider, Ilan"]
[Black "Filgueira, Hernan"]
[WhiteFideId "169013"]
[BlackFideId "101770"]
[WhiteElo "2224"]
[BlackElo "2363"]
[Result "1-0"]
[Round "8"]
[TimeControl "180+2"]
[Date "2023.06.07"]
[WhiteClock "0:00:03"]
[BlackClock "0:00:27"]
[Board "57"]

1. e4 {[%clk 0:03:00]}  d6 {[%clk 0:02:59]} 2. d4 {[%clk 0:03:00]}  Nf6 {[%clk 0:02:59]} 3. Nc3 {[%clk 0:03:00]}  e5 {[%clk 0:02:59]} 4. Nf3 {[%clk 0:02:58]}  Nbd7 {[%clk 0:02:59]} 5. Bc4 {[%clk 0:02:58]}  Be7 {[%clk 0:02:59]} 6. O-O {[%clk 0:02:57]}  O-O {[%clk 0:02:59]} 7. Re1 {[%clk 0:02:57]}  c6 {[%clk 0:02:58]} 8. a4 {[%clk 0:02:57]}  a5 {[%clk 0:02:58]} 9. h3 {[%clk 0:02:57]}  h6 {[%clk 0:02:52]} 10. Ba2 {[%clk 0:02:54]}  Qc7 {[%clk 0:02:52]} 11. Nh4 {[%clk 0:02:45]}  Re8 {[%clk 0:02:51]} 12. dxe5 {[%clk 0:02:20]}  dxe5 {[%clk 0:02:49]} 13. Qf3 {[%clk 0:02:14]}  Nc5 {[%clk 0:02:36]} 14. Be3 {[%clk 0:02:03]}  Be6 {[%clk 0:02:27]} 15. Bxe6 {[%clk 0:01:56]}  fxe6 {[%clk 0:02:26]} 16. Ng6 {[%clk 0:01:54]}  Kh7 {[%clk 0:02:16]} 17. Nxe7 {[%clk 0:01:33]}  Qxe7 {[%clk 0:02:15]} 18. Rad1 {[%clk 0:01:30]}  Na6 {[%clk 0:02:02]} 19. Qg3 {[%clk 0:01:19]}  Nb4 {[%clk 0:02:00]} 20. Re2 {[%clk 0:01:11]}  Qc7 {[%clk 0:01:53]} 21. Bd4 {[%clk 0:01:02]}  Nd7 {[%clk 0:01:49]} 22. Be3 {[%clk 0:00:59]}  Re7 {[%clk 0:01:45]} 23. Red2 {[%clk 0:00:57]}  Nf6 {[%clk 0:01:44]} 24. Bc5 {[%clk 0:00:55]}  Rf7 {[%clk 0:01:33]} 25. Bd6 {[%clk 0:00:54]}  Qb6 {[%clk 0:01:24]} 26. Bxe5 {[%clk 0:00:50]}  c5 {[%clk 0:01:18]} 27. Rd6 {[%clk 0:00:43]}  Nc6 {[%clk 0:01:18]} 28. Rxe6 {[%clk 0:00:38]}  Qxb2 {[%clk 0:01:14]} 29. Bxf6 {[%clk 0:00:29]}  gxf6 {[%clk 0:01:10]} 30. Rxf6 {[%clk 0:00:24]}  Rg7 {[%clk 0:01:08]} 31. Qh4 {[%clk 0:00:14]}  Kg8 {[%clk 0:00:55]} 32. Rxh6 {[%clk 0:00:11]}  Qxc3 {[%clk 0:00:43]} 33. Rh8+ {[%clk 0:00:10]}  Kf7 {[%clk 0:00:43]} 34. Qf4+ {[%clk 0:00:08]}  Qf6 {[%clk 0:00:40]} 35. Qxf6+ {[%clk 0:00:05]}  Kxf6 {[%clk 0:00:40]} 36. Rxa8 {[%clk 0:00:06]}  Nd4 {[%clk 0:00:40]} 37. Rf8+ {[%clk 0:00:04]}  Ke7 {[%clk 0:00:39]} 38. Rb8 {[%clk 0:00:04]}  Ke6 {[%clk 0:00:39]} 39. c3 {[%clk 0:00:02]}  Ne2+ {[%clk 0:00:38]} 40. Kf1 {[%clk 0:00:02]}  Nxc3 {[%clk 0:00:38]} 41. Rc1 {[%clk 0:00:03]}  Nxe4 {[%clk 0:00:38]} 42. Re1 {[%clk 0:00:03]}  Kd5 {[%clk 0:00:34]} 43. Rd8+ {[%clk 0:00:03]}  Kc4 {[%clk 0:00:28]} 44. Rxe4+ {[%clk 0:00:03]}  Kb3 {[%clk 0:00:27]} 45. Rd3+ {[%clk 0:00:03]}  Kc2 {[%clk 0:00:28]} 46. Rf3 {[%clk 0:00:02]}  c4 {[%clk 0:00:27]} 47. Rxc4+ {[%clk 0:00:02]}  Kb2 {[%clk 0:00:27]} 48. Re4 {[%clk 0:00:03]} 1-0


[Site "https://www.chess.com"]